[Event "*** Titled Tuesday Blitz"]
[Site "Chess.com"]
[Date "2020.12.29"]
[Round "3"]
[White "Smile2005"]
[Black "Chess_Boxer123"]
[Result "0-1"]
[WhiteElo "2368"]
[BlackElo "2559"]
[TimeControl "180+1"]
[EndTime "10:23:44 PST"]
[Termination "Chess_Boxer123 won by checkmate"]

1. Nf3 {[%clk 0:03:00.9]} 1... g6 {[%clk 0:02:55.4]} 2. g3 {[%clk 0:03:01.8]}
2... Bg7 {[%clk 0:02:55.4]} 3. Bg2 {[%clk 0:03:02.7]} 3... b6 {[%clk 0:02:56]}
4. O-O {[%clk 0:03:03.6]} 4... Bb7 {[%clk 0:02:56.6]} 5. d3 {[%clk 0:03:03.6]}
5... e6 {[%clk 0:02:57.1]} 6. e4 {[%clk 0:03:03.7]} 6... Ne7 {[%clk 0:02:57.3]}
7. Nbd2 {[%clk 0:03:04.2]} 7... O-O {[%clk 0:02:57.9]} 8. c3 {[%clk 0:03:04.2]}
8... d6 {[%clk 0:02:57.3]} 9. d4 {[%clk 0:03:03.1]} 9... Nd7 {[%clk 0:02:57.8]}
10. Qc2 {[%clk 0:03:01.9]} 10... e5 {[%clk 0:02:58.1]} 11. Re1 {[%clk
0:03:00.7]} 11... h6 {[%clk 0:02:58.3]} 12. Nc4 {[%clk 0:02:59.6]} 12... a5
{[%clk 0:02:56.6]} 13. dxe5 {[%clk 0:02:59.3]} 13... Nxe5 {[%clk 0:02:56.7]} 14.
Nfxe5 {[%clk 0:02:57.8]} 14... dxe5 {[%clk 0:02:57]} 15. a4 {[%clk 0:02:53.9]}
15... Qc8 {[%clk 0:02:52.8]} 16. Be3 {[%clk 0:02:52.6]} 16... Qe6 {[%clk
0:02:52.8]} 17. Bf1 {[%clk 0:02:51]} 17... f5 {[%clk 0:02:49]} 18. Nd2 {[%clk
0:02:49.2]} 18... Qf6 {[%clk 0:02:40.6]} 19. Bc4+ {[%clk 0:02:48.6]} 19... Kh8
{[%clk 0:02:39.5]} 20. exf5 {[%clk 0:02:41.4]} 20... gxf5 {[%clk 0:02:39.4]} 21.
f4 {[%clk 0:02:41.5]} 21... Qc6 {[%clk 0:02:39.2]} 22. Nf1 {[%clk 0:02:01.5]}
22... Qh1+ {[%clk 0:02:37.3]} 23. Kf2 {[%clk 0:02:01.8]} 23... Qg2# {[%clk
0:02:31.3]} 0-1

[Event "*** Titled Tuesday Blitz"]
[Site "Chess.com"]
[Date "2020.12.29"]
[Round "3"]
[White "GM_Crest"]
[Black "TomasKapitanchuk"]
[Result "1-0"]
[WhiteElo "2694"]
[BlackElo "2431"]
[TimeControl "180+1"]
[EndTime "10:23:48 PST"]
[Termination "GM_Crest won by resignation"]

1. d4 {[%clk 0:03:00.9]} 1... Nf6 {[%clk 0:02:59.7]} 2. c4 {[%clk 0:03:00.9]}
2... e6 {[%clk 0:03:00.3]} 3. Nc3 {[%clk 0:03:01]} 3... Bb4 {[%clk 0:03:00.8]}
4. e3 {[%clk 0:03:01.5]} 4... O-O {[%clk 0:03:00.5]} 5. Ne2 {[%clk 0:03:02.1]}
5... d5 {[%clk 0:02:59.9]} 6. a3 {[%clk 0:03:02.1]} 6... Be7 {[%clk 0:02:58.8]}
7. cxd5 {[%clk 0:03:00.9]} 7... exd5 {[%clk 0:02:59.7]} 8. Nf4 {[%clk
0:02:58.9]} 8... Bf5 {[%clk 0:02:59.5]} 9. Qb3 {[%clk 0:02:57.8]} 9... Nc6
{[%clk 0:02:43.5]} 10. Ncxd5 {[%clk 0:02:56.1]} 10... Na5 {[%clk 0:02:38.3]} 11.
Nxf6+ {[%clk 0:02:44.8]} 11... Bxf6 {[%clk 0:02:39.2]} 12. Qb5 {[%clk 0:02:45]}
12... c5 {[%clk 0:02:33.5]} 13. Bd2 {[%clk 0:02:38.9]} 13... Nc6 {[%clk
0:02:26.9]} 14. Qxc5 {[%clk 0:02:37.4]} 14... Nxd4 {[%clk 0:02:17.9]} 15. exd4
{[%clk 0:02:36.2]} 15... Bxd4 {[%clk 0:02:18.8]} 16. Qxf5 {[%clk 0:02:36.1]}
16... Bxb2 {[%clk 0:02:19.2]} 17. Rb1 {[%clk 0:02:29.6]} 17... Re8+ {[%clk
0:02:18.7]} 18. Be2 {[%clk 0:02:29.8]} 18... Bxa3 {[%clk 0:02:15.8]} 19. Rxb7
{[%clk 0:02:29.1]} 19... Re7 {[%clk 0:02:00]} 20. Rxe7 {[%clk 0:02:22.2]} 20...
Qxe7 {[%clk 0:02:00.9]} 21. O-O {[%clk 0:02:20.8]} 1-0

[Event "*** Titled Tuesday Blitz"]
[Site "Chess.com"]
[Date "2020.12.29"]
[Round "3"]
[White "renehp"]
[Black "MomchilPetkov"]
[Result "0-1"]
[WhiteElo "2440"]
[BlackElo "2740"]
[TimeControl "180+1"]
[EndTime "10:23:56 PST"]
[Termination "MomchilPetkov won by resignation"]

1. e4 {[%clk 0:03:00]} 1... g6 {[%clk 0:03:00.5]} 2. d4 {[%clk 0:02:59.6]} 2...
Bg7 {[%clk 0:03:01]} 3. Nc3 {[%clk 0:02:59.4]} 3... a6 {[%clk 0:03:01.5]} 4. f4
{[%clk 0:02:57.9]} 4... b5 {[%clk 0:03:01.7]} 5. Be3 {[%clk 0:02:56.3]} 5... Bb7
{[%clk 0:03:02.2]} 6. Bd3 {[%clk 0:02:55.8]} 6... d6 {[%clk 0:03:02.2]} 7. Nf3
{[%clk 0:02:55.4]} 7... Nd7 {[%clk 0:03:02.6]} 8. e5 {[%clk 0:02:55.5]} 8... Nh6
{[%clk 0:03:02.7]} 9. Qe2 {[%clk 0:02:49.1]} 9... O-O {[%clk 0:03:01.6]} 10. e6
{[%clk 0:02:43.7]} 10... Bxf3 {[%clk 0:02:45.1]} 11. Qxf3 {[%clk 0:02:38.6]}
11... fxe6 {[%clk 0:02:44.2]} 12. O-O {[%clk 0:02:36.9]} 12... Nf5 {[%clk
0:02:43.6]} 13. Qe4 {[%clk 0:02:35.5]} 13... Kh8 {[%clk 0:02:12.4]} 14. Qxe6
{[%clk 0:02:30.6]} 14... Nxd4 {[%clk 0:02:05.2]} 15. Qe4 {[%clk 0:02:29.9]}
15... Nc5 {[%clk 0:01:55.9]} 0-1

[Event "*** Titled Tuesday Blitz"]
[Site "Chess.com"]
[Date "2020.12.29"]
[Round "3"]
[White "Deepweb2020"]
[Black "EdmundPlayer"]
[Result "1-0"]
[WhiteElo "2364"]
[BlackElo "2198"]
[TimeControl "180+1"]
[EndTime "10:23:58 PST"]
[Termination "Deepweb2020 won by resignation"]

1. d4 {[%clk 0:03:00.9]} 1... d5 {[%clk 0:02:58.9]} 2. c4 {[%clk 0:03:00.7]}
2... dxc4 {[%clk 0:02:58.7]} 3. e3 {[%clk 0:03:00.1]} 3... e5 {[%clk 0:02:58]}
4. Bxc4 {[%clk 0:02:57.6]} 4... exd4 {[%clk 0:02:58.3]} 5. Nf3 {[%clk 0:02:56]}
5... Bd6 {[%clk 0:02:49]} 6. exd4 {[%clk 0:02:39.9]} 6... Nf6 {[%clk 0:02:48.4]}
7. O-O {[%clk 0:02:37.2]} 7... O-O {[%clk 0:02:48.6]} 8. Bg5 {[%clk 0:02:34.8]}
8... Bg4 {[%clk 0:02:45.8]} 9. Nbd2 {[%clk 0:02:32.1]} 9... Nc6 {[%clk
0:02:44.4]} 10. Qc2 {[%clk 0:02:23.4]} 10... h6 {[%clk 0:02:42.2]} 11. Bh4
{[%clk 0:02:14.4]} 11... g5 {[%clk 0:02:30.9]} 12. Qg6+ {[%clk 0:01:54.5]} 12...
Kh8 {[%clk 0:02:29]} 13. Qxh6+ {[%clk 0:01:52.4]} 13... Nh7 {[%clk 0:02:28.8]}
14. Nxg5 {[%clk 0:01:45.6]} 1-0

[Event "*** Titled Tuesday Blitz"]
[Site "Chess.com"]
[Date "2020.12.29"]
[Round "3"]
[White "paulrusan"]
[Black "KyrgyzFighter"]
[Result "1/2-1/2"]
[WhiteElo "2228"]
[BlackElo "2379"]
[TimeControl "180+1"]
[EndTime "10:24:29 PST"]
[Termination "Game drawn by repetition"]

1. e4 {[%clk 0:03:00.9]} 1... e6 {[%clk 0:02:59.6]} 2. Nf3 {[%clk 0:03:00.2]}
2... d5 {[%clk 0:03:00.5]} 3. e5 {[%clk 0:03:00.3]} 3... c5 {[%clk 0:02:54.4]}
4. b4 {[%clk 0:03:00.6]} 4... cxb4 {[%clk 0:02:54.8]} 5. a3 {[%clk 0:03:00.5]}
5... Nc6 {[%clk 0:02:55.7]} 6. axb4 {[%clk 0:03:00.7]} 6... Bxb4 {[%clk
0:02:56.6]} 7. c3 {[%clk 0:03:01.1]} 7... Be7 {[%clk 0:02:57]} 8. d4 {[%clk
0:03:01.6]} 8... Nh6 {[%clk 0:02:57]} 9. Bd3 {[%clk 0:03:01.2]} 9... Nf5 {[%clk
0:02:54.4]} 10. O-O {[%clk 0:03:00.5]} 10... O-O {[%clk 0:02:54.2]} 11. g4
{[%clk 0:03:00.4]} 11... Nh4 {[%clk 0:02:54.4]} 12. Nxh4 {[%clk 0:03:00.9]}
12... Bxh4 {[%clk 0:02:54.6]} 13. f4 {[%clk 0:03:01.4]} 13... h6 {[%clk
0:02:55]} 14. g5 {[%clk 0:02:58.5]} 14... hxg5 {[%clk 0:02:54.1]} 15. Qh5 {[%clk
0:02:58.4]} 15... g6 {[%clk 0:02:54.7]} 16. Bxg6 {[%clk 0:02:25.8]} 16... fxg6
{[%clk 0:02:51]} 17. Qxg6+ {[%clk 0:02:24.2]} 17... Kh8 {[%clk 0:02:51.4]} 18.
Qh6+ {[%clk 0:00:51.9]} 18... Kg8 {[%clk 0:02:50.2]} 19. Qg6+ {[%clk 0:00:51]}
19... Kh8 {[%clk 0:02:50.4]} 20. Qh6+ {[%clk 0:00:49.2]} 20... Kg8 {[%clk
0:02:50.7]} 21. Qg6+ {[%clk 0:00:49.2]} 1/2-1/2

[Event "*** Titled Tuesday Blitz"]
[Site "Chess.com"]
[Date "2020.12.29"]
[Round "3"]
[White "kinga2008"]
[Black "Galileo22"]
[Result "0-1"]
[WhiteElo "2162"]
[BlackElo "2355"]
[TimeControl "180+1"]
[EndTime "10:24:32 PST"]
[Termination "Galileo22 won by resignation"]

1. e4 {[%clk 0:02:59.2]} 1... e5 {[%clk 0:02:52.9]} 2. Nf3 {[%clk 0:02:46.7]}
2... Nf6 {[%clk 0:02:51.9]} 3. Nc3 {[%clk 0:02:46]} 3... Nc6 {[%clk 0:02:51.1]}
4. Bc4 {[%clk 0:02:43]} 4... Bc5 {[%clk 0:02:48.7]} 5. O-O {[%clk 0:02:38.8]}
5... d6 {[%clk 0:02:48.2]} 6. d3 {[%clk 0:02:32.3]} 6... h6 {[%clk 0:02:37.8]}
7. h3 {[%clk 0:02:29.9]} 7... g5 {[%clk 0:02:29.3]} 8. Nd5 {[%clk 0:02:14.5]}
8... g4 {[%clk 0:02:18]} 9. Nh4 {[%clk 0:01:27.1]} 9... Nxd5 {[%clk 0:02:03.8]}
10. Bxd5 {[%clk 0:01:17.4]} 10... Qxh4 {[%clk 0:02:02]} 0-1

[Event "*** Titled Tuesday Blitz"]
[Site "Chess.com"]
[Date "2020.12.29"]
[Round "3"]
[White "Juanovic"]
[Black "Sergienko_Sergey"]
[Result "0-1"]
[WhiteElo "2024"]
[BlackElo "2312"]
[TimeControl "180+1"]
[EndTime "10:24:36 PST"]
[Termination "Sergienko_Sergey won by resignation"]

1. e4 {[%clk 0:02:59.8]} 1... c5 {[%clk 0:02:59.3]} 2. Nf3 {[%clk 0:02:59]} 2...
a6 {[%clk 0:02:58.8]} 3. Nc3 {[%clk 0:02:57.6]} 3... b5 {[%clk 0:02:58]} 4. d4
{[%clk 0:02:54.9]} 4... cxd4 {[%clk 0:02:57.4]} 5. Nxd4 {[%clk 0:02:55]} 5...
Bb7 {[%clk 0:02:57.4]} 6. a3 {[%clk 0:02:48.7]} 6... d6 {[%clk 0:02:53.8]} 7.
Be3 {[%clk 0:02:33.7]} 7... Nf6 {[%clk 0:02:52.9]} 8. f3 {[%clk 0:02:32.3]} 8...
g6 {[%clk 0:02:47.1]} 9. Qd2 {[%clk 0:02:30.4]} 9... Bg7 {[%clk 0:02:46.7]} 10.
Bh6 {[%clk 0:02:28.5]} 10... O-O {[%clk 0:02:45.8]} 11. Bxg7 {[%clk 0:02:28.5]}
11... Kxg7 {[%clk 0:02:45.9]} 12. h4 {[%clk 0:02:24.6]} 12... h5 {[%clk
0:02:44.6]} 13. Bd3 {[%clk 0:02:21.1]} 13... Nbd7 {[%clk 0:02:43.4]} 14. O-O-O
{[%clk 0:02:10.6]} 14... Ne5 {[%clk 0:02:32.4]} 15. Qg5 {[%clk 0:02:00.9]} 15...
e6 {[%clk 0:02:25.4]} 16. g4 {[%clk 0:01:47.9]} 16... Qb6 {[%clk 0:02:06.7]} 17.
Be2 {[%clk 0:01:33]} 17... b4 {[%clk 0:01:58.5]} 18. a4 {[%clk 0:01:32.4]} 18...
bxc3 {[%clk 0:01:56.9]} 0-1

[Event "*** Titled Tuesday Blitz"]
[Site "Chess.com"]
[Date "2020.12.29"]
[Round "3"]
[White "Vusatiuk_Vladimir"]
[Black "sotochess"]
[Result "0-1"]
[WhiteElo "2290"]
[BlackElo "2519"]
[TimeControl "180+1"]
[EndTime "10:24:38 PST"]
[Termination "sotochess won by resignation"]

1. d4 {[%clk 0:03:00.9]} 1... Nf6 {[%clk 0:02:58.9]} 2. c4 {[%clk 0:03:01.3]}
2... c5 {[%clk 0:02:58.9]} 3. d5 {[%clk 0:03:01.5]} 3... b5 {[%clk 0:02:58.8]}
4. cxb5 {[%clk 0:03:02.4]} 4... a6 {[%clk 0:02:58.5]} 5. bxa6 {[%clk 0:03:03.3]}
5... Bxa6 {[%clk 0:02:58.3]} 6. Nc3 {[%clk 0:03:03.4]} 6... d6 {[%clk
0:02:58.3]} 7. e4 {[%clk 0:03:03.6]} 7... Bxf1 {[%clk 0:02:57.9]} 8. Kxf1 {[%clk
0:03:04.5]} 8... Nbd7 {[%clk 0:02:58.5]} 9. g3 {[%clk 0:03:04.9]} 9... g6 {[%clk
0:02:59.4]} 10. Kg2 {[%clk 0:03:05.1]} 10... Bg7 {[%clk 0:03:00.2]} 11. Nf3
{[%clk 0:03:05.5]} 11... O-O {[%clk 0:03:01.1]} 12. a4 {[%clk 0:03:04.6]} 12...
Ra6 {[%clk 0:03:01.3]} 13. Qe2 {[%clk 0:03:04.5]} 13... Qa8 {[%clk 0:03:00.9]}
14. Bd2 {[%clk 0:02:54.1]} 14... e6 {[%clk 0:03:00]} 15. dxe6 {[%clk 0:02:45.7]}
15... fxe6 {[%clk 0:02:59.7]} 16. Rhd1 {[%clk 0:02:46.4]} 16... d5 {[%clk
0:02:59.6]} 17. exd5 {[%clk 0:02:39.8]} 17... exd5 {[%clk 0:02:57.8]} 18. Bf4
{[%clk 0:01:59.4]} 18... d4 {[%clk 0:02:53.5]} 19. Nb5 {[%clk 0:01:59.5]} 19...
Nd5 {[%clk 0:02:49.9]} 20. Rac1 {[%clk 0:01:41.9]} 20... Rxf4 {[%clk 0:02:48.5]}
21. Qc4 {[%clk 0:01:28.6]} 21... Rf7 {[%clk 0:02:43.5]} 22. Ng5 {[%clk 0:01:01]}
22... Ne3+ {[%clk 0:02:38.7]} 0-1

[Event "*** Titled Tuesday Blitz"]
[Site "Chess.com"]
[Date "2020.12.29"]
[Round "3"]
[White "akanga001"]
[Black "03revilo"]
[Result "0-1"]
[WhiteElo "1942"]
[BlackElo "2304"]
[TimeControl "180+1"]
[EndTime "10:24:41 PST"]
[Termination "03revilo won by checkmate"]

1. d4 {[%clk 0:03:00.9]} 1... d5 {[%clk 0:02:59.6]} 2. c4 {[%clk 0:03:01]} 2...
e6 {[%clk 0:02:59.5]} 3. Nc3 {[%clk 0:03:00.4]} 3... c6 {[%clk 0:02:58.8]} 4. e3
{[%clk 0:02:58.5]} 4... Bd6 {[%clk 0:02:58]} 5. Nf3 {[%clk 0:02:58.4]} 5... f5
{[%clk 0:02:58]} 6. Qc2 {[%clk 0:02:57.3]} 6... Nf6 {[%clk 0:02:57.5]} 7. Be2
{[%clk 0:02:55.7]} 7... O-O {[%clk 0:02:56.9]} 8. O-O {[%clk 0:02:54.7]} 8...
Nbd7 {[%clk 0:02:50.9]} 9. b3 {[%clk 0:02:54.1]} 9... Ne4 {[%clk 0:02:47.4]} 10.
Bb2 {[%clk 0:02:51.4]} 10... Rf6 {[%clk 0:02:45.4]} 11. Bd3 {[%clk 0:02:41.2]}
11... Rh6 {[%clk 0:02:43.2]} 12. Ne2 {[%clk 0:02:35]} 12... Bxh2+ {[%clk
0:02:31]} 13. Nxh2 {[%clk 0:02:27.7]} 13... Qh4 {[%clk 0:02:30.9]} 14. Rfe1
{[%clk 0:02:02.4]} 14... Qxf2+ {[%clk 0:01:47.3]} 15. Kh1 {[%clk 0:02:00.5]}
15... Ndf6 {[%clk 0:01:29.6]} 16. Nf4 {[%clk 0:01:50.7]} 16... Ng3# {[%clk
0:01:28.4]} 0-1

[Event "*** Titled Tuesday Blitz"]
[Site "Chess.com"]
[Date "2020.12.29"]
[Round "3"]
[White "A-S-00"]
[Black "NeverW84M8"]
[Result "0-1"]
[WhiteElo "2266"]
[BlackElo "2505"]
[TimeControl "180+1"]
[EndTime "10:24:51 PST"]
[Termination "NeverW84M8 won by resignation"]

1. d4 {[%clk 0:03:00]} 1... Nf6 {[%clk 0:03:00.2]} 2. c4 {[%clk 0:02:59.8]} 2...
c5 {[%clk 0:02:59.1]} 3. d5 {[%clk 0:02:59.5]} 3... e6 {[%clk 0:02:59.6]} 4. Nc3
{[%clk 0:02:59.2]} 4... exd5 {[%clk 0:03:00.4]} 5. cxd5 {[%clk 0:02:59.5]} 5...
d6 {[%clk 0:03:01.1]} 6. e4 {[%clk 0:02:59.4]} 6... g6 {[%clk 0:03:01.5]} 7. h3
{[%clk 0:02:59.8]} 7... Bg7 {[%clk 0:03:02]} 8. Nf3 {[%clk 0:03:00.3]} 8... O-O
{[%clk 0:03:01.9]} 9. Bd3 {[%clk 0:03:00.5]} 9... b5 {[%clk 0:03:01.6]} 10. Nxb5
{[%clk 0:02:47.5]} 10... Re8 {[%clk 0:02:57]} 11. Nc3 {[%clk 0:02:46.6]} 11...
Nxe4 {[%clk 0:02:52.8]} 12. O-O {[%clk 0:02:36.8]} 12... Nxc3 {[%clk 0:02:48.6]}
13. bxc3 {[%clk 0:02:36.2]} 13... Ba6 {[%clk 0:02:38.6]} 14. Bxa6 {[%clk
0:02:21.1]} 14... Nxa6 {[%clk 0:02:39.5]} 15. Qc2 {[%clk 0:02:21]} 15... Qa5
{[%clk 0:02:34.5]} 16. Bd2 {[%clk 0:02:16.6]} 16... c4 {[%clk 0:02:33.3]} 17.
Rfe1 {[%clk 0:02:13.9]} 17... Qxd5 {[%clk 0:02:31.5]} 18. Rxe8+ {[%clk
0:02:07.3]} 18... Rxe8 {[%clk 0:02:26.8]} 19. Qa4 {[%clk 0:02:07.7]} 19... Nc7
{[%clk 0:02:23.5]} 20. Qxa7 {[%clk 0:02:07.2]} 20... Nb5 {[%clk 0:02:19.6]} 21.
Qa5 {[%clk 0:02:01.9]} 21... Nxc3 {[%clk 0:02:15.6]} 22. Qxd5 {[%clk 0:01:47.5]}
22... Nxd5 {[%clk 0:02:15.4]} 23. Rc1 {[%clk 0:01:47.5]} 23... c3 {[%clk
0:02:14.6]} 24. Be1 {[%clk 0:01:47.9]} 24... Ra8 {[%clk 0:02:11.1]} 25. Rc2
{[%clk 0:01:40]} 25... Nb4 {[%clk 0:02:10.9]} 26. Rc1 {[%clk 0:01:32.1]} 26...
Nd3 {[%clk 0:02:09.2]} 27. Rd1 {[%clk 0:01:30.8]} 27... c2 {[%clk 0:02:08.5]}
0-1

[Event "*** Titled Tuesday Blitz"]
[Site "Chess.com"]
[Date "2020.12.29"]
[Round "3"]
[White "TengisChess"]
[Black "SamuelGhimpu2003"]
[Result "0-1"]
[WhiteElo "2410"]
[BlackElo "2606"]
[TimeControl "180+1"]
[EndTime "10:24:53 PST"]
[Termination "SamuelGhimpu2003 won by resignation"]

1. d4 {[%clk 0:02:55.6]} 1... Nf6 {[%clk 0:02:58.1]} 2. c4 {[%clk 0:02:49]} 2...
g6 {[%clk 0:02:58.1]} 3. Nc3 {[%clk 0:02:48.2]} 3... d5 {[%clk 0:02:57.2]} 4.
Nf3 {[%clk 0:02:46.8]} 4... Bg7 {[%clk 0:02:56.8]} 5. Bg5 {[%clk 0:02:47]} 5...
Ne4 {[%clk 0:02:56.1]} 6. cxd5 {[%clk 0:02:47.3]} 6... Nxg5 {[%clk 0:02:55.5]}
7. Nxg5 {[%clk 0:02:47.5]} 7... e6 {[%clk 0:02:56.4]} 8. Qd2 {[%clk 0:02:47.5]}
8... exd5 {[%clk 0:02:56.4]} 9. Qe3+ {[%clk 0:02:47.8]} 9... Kf8 {[%clk
0:02:57]} 10. Qf4 {[%clk 0:02:32.9]} 10... Bf6 {[%clk 0:02:54.8]} 11. Nf3 {[%clk
0:02:28]} 11... Kg7 {[%clk 0:02:51]} 12. e3 {[%clk 0:02:27.4]} 12... c5 {[%clk
0:02:46.2]} 13. Be2 {[%clk 0:02:24.8]} 13... cxd4 {[%clk 0:02:39.1]} 14. Nxd4
{[%clk 0:02:24]} 14... Nc6 {[%clk 0:02:39.1]} 15. O-O {[%clk 0:02:21.6]} 15...
Re8 {[%clk 0:02:29.1]} 16. Bf3 {[%clk 0:02:20.8]} 16... Be5 {[%clk 0:02:27.7]}
17. Nxc6 {[%clk 0:02:06.3]} 17... bxc6 {[%clk 0:02:28.6]} 18. Qa4 {[%clk
0:02:03.9]} 18... Bd7 {[%clk 0:02:05.8]} 19. Rfd1 {[%clk 0:02:00]} 19... Qb8
{[%clk 0:02:00.2]} 20. Qc2 {[%clk 0:01:57.5]} 20... Bxh2+ {[%clk 0:01:58.8]} 21.
Kh1 {[%clk 0:01:56.9]} 21... Be5 {[%clk 0:01:57.2]} 22. Nxd5 {[%clk 0:01:44.8]}
22... cxd5 {[%clk 0:01:54.7]} 23. Bxd5 {[%clk 0:01:44.8]} 23... Qc8 {[%clk
0:01:53.6]} 0-1

[Event "*** Titled Tuesday Blitz"]
[Site "Chess.com"]
[Date "2020.12.29"]
[Round "3"]
[White "LawrenceTrent"]
[Black "Europe03"]
[Result "0-1"]
[WhiteElo "2507"]
[BlackElo "2330"]
[TimeControl "180+1"]
[EndTime "10:24:54 PST"]
[Termination "Europe03 won by resignation"]

1. c4 {[%clk 0:03:00.9]} 1... e6 {[%clk 0:02:57.5]} 2. Nf3 {[%clk 0:02:57.8]}
2... Nf6 {[%clk 0:02:57.2]} 3. e3 {[%clk 0:02:46]} 3... b6 {[%clk 0:02:52]} 4.
Nc3 {[%clk 0:02:41.6]} 4... Bb7 {[%clk 0:02:51.9]} 5. Qc2 {[%clk 0:02:37.6]}
5... Be7 {[%clk 0:02:50.2]} 6. Be2 {[%clk 0:02:26.6]} 6... O-O {[%clk
0:02:49.6]} 7. b3 {[%clk 0:02:07.7]} 7... c5 {[%clk 0:02:46.4]} 8. Bb2 {[%clk
0:02:06.9]} 8... d5 {[%clk 0:02:40.6]} 9. cxd5 {[%clk 0:02:02.1]} 9... exd5
{[%clk 0:02:38]} 10. d4 {[%clk 0:02:00.1]} 10... Nc6 {[%clk 0:02:31.8]} 11. dxc5
{[%clk 0:01:48.7]} 11... bxc5 {[%clk 0:02:28.4]} 12. O-O-O {[%clk 0:01:47]}
12... Qa5 {[%clk 0:02:09.6]} 13. Kb1 {[%clk 0:01:41.9]} 13... Rfd8 {[%clk
0:02:08.9]} 14. Ng5 {[%clk 0:01:37]} 14... d4 {[%clk 0:01:45.9]} 15. Nce4 {[%clk
0:01:31.6]} 15... Nxe4 {[%clk 0:01:41]} 16. Nxe4 {[%clk 0:01:30.6]} 16... Nb4
{[%clk 0:01:36.7]} 0-1

[Event "*** Titled Tuesday Blitz"]
[Site "Chess.com"]
[Date "2020.12.29"]
[Round "3"]
[White "eCztery"]
[Black "ehrenfeld"]
[Result "0-1"]
[WhiteElo "2365"]
[BlackElo "2556"]
[TimeControl "180+1"]
[EndTime "10:24:58 PST"]
[Termination "ehrenfeld won by resignation"]

1. e4 {[%clk 0:03:00.8]} 1... e5 {[%clk 0:02:42.3]} 2. Nf3 {[%clk 0:02:59.8]}
2... Nc6 {[%clk 0:02:41.6]} 3. d4 {[%clk 0:03:00.4]} 3... exd4 {[%clk
0:02:41.2]} 4. Bc4 {[%clk 0:03:01.1]} 4... Nf6 {[%clk 0:02:40.2]} 5. O-O {[%clk
0:03:00.6]} 5... Nxe4 {[%clk 0:02:38.8]} 6. Nc3 {[%clk 0:03:00.2]} 6... Nxc3
{[%clk 0:02:37.3]} 7. bxc3 {[%clk 0:03:00]} 7... d5 {[%clk 0:02:34.6]} 8. Bb5
{[%clk 0:03:00.5]} 8... Be7 {[%clk 0:02:30.8]} 9. Re1 {[%clk 0:02:54]} 9... O-O
{[%clk 0:02:29.7]} 10. Bxc6 {[%clk 0:02:53.9]} 10... bxc6 {[%clk 0:02:29.2]} 11.
cxd4 {[%clk 0:02:54.8]} 11... Bd6 {[%clk 0:02:26.4]} 12. Ne5 {[%clk 0:02:50.3]}
12... Bb7 {[%clk 0:02:21.2]} 13. Rb1 {[%clk 0:02:47.8]} 13... Rb8 {[%clk
0:02:17.9]} 14. Qh5 {[%clk 0:02:27.7]} 14... f6 {[%clk 0:02:15.6]} 15. Nd3
{[%clk 0:02:24.8]} 15... Ba6 {[%clk 0:02:00.4]} 16. Rxb8 {[%clk 0:02:20.7]}
16... Qxb8 {[%clk 0:01:59.8]} 17. Nf4 {[%clk 0:01:28.6]} 17... Qb4 {[%clk
0:01:46]} 18. Qe2 {[%clk 0:01:28.3]} 18... Bxe2 {[%clk 0:01:43.2]} 0-1

[Event "*** Titled Tuesday Blitz"]
[Site "Chess.com"]
[Date "2020.12.29"]
[Round "3"]
[White "MatyChess1"]
[Black "Ze-Pequeno"]
[Result "1-0"]
[WhiteElo "2530"]
[BlackElo "2321"]
[TimeControl "180+1"]
[EndTime "10:25:24 PST"]
[Termination "MatyChess1 won by resignation"]

1. e4 {[%clk 0:03:00.9]} 1... c5 {[%clk 0:02:59.7]} 2. Nf3 {[%clk 0:03:01.2]}
2... d6 {[%clk 0:03:00]} 3. d4 {[%clk 0:03:01.3]} 3... cxd4 {[%clk 0:03:00.3]}
4. Nxd4 {[%clk 0:03:00.8]} 4... Nf6 {[%clk 0:03:00.8]} 5. Nc3 {[%clk 0:03:01.7]}
5... a6 {[%clk 0:03:00.9]} 6. a4 {[%clk 0:02:55.9]} 6... e6 {[%clk 0:02:59.7]}
7. g4 {[%clk 0:02:54.2]} 7... Nc6 {[%clk 0:02:56.4]} 8. g5 {[%clk 0:02:53.3]}
8... Nd7 {[%clk 0:02:55.9]} 9. h4 {[%clk 0:02:47.9]} 9... Nxd4 {[%clk
0:02:47.9]} 10. Qxd4 {[%clk 0:02:47.7]} 10... b6 {[%clk 0:02:44]} 11. Be3 {[%clk
0:02:42.3]} 11... Bb7 {[%clk 0:02:43.2]} 12. f4 {[%clk 0:02:34.3]} 12... Rc8
{[%clk 0:02:14]} 13. O-O-O {[%clk 0:02:28.2]} 13... Qc7 {[%clk 0:01:55.8]} 14.
Kb1 {[%clk 0:02:23.1]} 14... e5 {[%clk 0:01:36.1]} 15. Qd2 {[%clk 0:02:20.2]}
15... exf4 {[%clk 0:01:23.1]} 16. Bxf4 {[%clk 0:02:19.6]} 16... Ne5 {[%clk
0:01:22.5]} 17. Nd5 {[%clk 0:02:01.9]} 17... Bxd5 {[%clk 0:01:01.5]} 18. exd5
{[%clk 0:02:02.8]} 1-0